Cogmind - Beta 13 @@@ ROGUE MODE // 2024.04.09 @ 02:37:25 Player: puppuppit Result: Destroyed by Y-64 Sentinel with Wave Gun Performance ------------- Evolutions (5) 2500 Regions Visited (19) 3800 Robots Destroyed (284) 1420 Value Destroyed (12460) 12460 Prototype IDs (53) 1060 Alien Tech Used (0) 0 Bonus (8316) 8316 TOTAL SCORE: 29556 Bonus ------- Triggered High Security 1000 High Alert Combat Kills 4206 Follower Combat Kills 2307 Entered Garrisons 600 Aligned with FarCom 300 Met Imprinter 300 Acquired ECA 300 Friendly Fire -697 Cogmind --------- Core Integrity 0/1000 Matter 28/300 Energy 88/100 System Corruption 4% Temperature Cool (9) Movement Core (50) Location -5/Factory Parts ------- > --- POWER (2) -------- (None) > --- PROPULSION (6) --- (None) > --- UTILITY (7) ------ Experimental Optical Array Encrypted Comm Array Improved Melee Analysis Suite System Shield > --- WEAPON (2) ------- Heavy Pick > --- INVENTORY (5) ---- Light Antimatter Reactor Antimissile System Mobile Refinery Mk. CCLXVII Fusion Bomb Launcher CR-A16's Pointy Stick Peak State ------------ > --- POWER ------------ Light Nuclear Core Light Antimatter Reactor > --- PROPULSION ------- Cooled VTOL Module Cooled VTOL Module Cooled VTOL Module Cooled VTOL Module Cooled VTOL Module Q-thruster > --- UTILITY ---------- Advanced Heat Sink Medium Storage Unit Gravity Neutralizer Experimental Optical Array Advanced Launcher Guidance Computer Improved Reaction Control System Makeshift Hacking Suite > --- WEAPON ----------- Fusion Bomb Launcher CR-A16's Pointy Stick > --- INVENTORY -------- Light Nuclear Core Impulse Thruster Array Encrypted Comm Array Makeshift Light Armor Plating Antimissile System Mobile Refinery Mk. CCLXVII Hacking Drone Bay [Rating: 97] Favorites ----------- Power Cold Fusion Reactor Engine Heavy Deuterium Engine Power Core Light Nuclear Core Reactor Cold Fusion Reactor Propulsion Cooled VTOL Module Leg Aluminum Leg Wheel Wheel Hover Unit Combat Airjet Flight Unit Cooled VTOL Module Utility Advanced Targeting Computer Device Advanced Gravity Neutralizer Storage Medium Storage Unit Processor Advanced Targeting Computer Hackware System Shield Protection Improved Light Armor Plating Weapon Gauss Rifle Energy Gun EM Pulse Gun Energy Cannon YOLO Cannon Ballistic Gun Gauss Rifle Ballistic Cannon Magnetic Acceleration Cannon Launcher Fusion Bomb Launcher Impact Weapon Great Maul Piercing Weapon CR-A16's Pointy Stick Build | -11 -10 -10 -9 -9 -9 -8 -8 -7 -7 -7 -7 -7 -7 -7 -7 -6 -6 -6 -5 ------- Run | Yrd Mat Min Mat Min Exi Min Mat Fac Gar Fac Gar Fac Low Low Zio Pro Fac Gar Fac Slots Evolved 10 | . . . 2 . . . 2 2 . . . . . . . . 2 . 2 Power 1 | . . . . . . . . . . . . . . . . . 1 . . Propulsion 4 | . . . . . . . 1 2 . . . . . . . . 1 . . Utility 5 | . . . 2 . . . 1 . . . . . . . . . . . 2 Weapon . | . . . . . . . . . . . . . . . . . . . . Parts Attached 358 | 8 3 14 16 7 1 1 41 37 20 49 31 17 1 6 8 1 29 42 26 Power 38 | 1 . 2 3 . . . 4 4 . 3 3 . . 1 1 . 8 7 1 Engine 21 | 1 . 2 3 . . . 4 3 . 1 1 . . . . . 5 1 . Core 11 | . . . . . . . . 1 . 1 . . . 1 . . 2 5 1 Reactor 6 | . . . . . . . . . . 1 2 . . . 1 . 1 1 . Propulsion 83 | 3 . 5 4 1 . . 12 19 3 11 6 2 . . . . 6 6 5 Treads . | . . . . . . . . . . . . . . . . . . . . Leg 3 | . . . . . . . 3 . . . . . . . . . . . . Wheel 4 | 3 . 1 . . . . . . . . . . . . . . . . . Hover 19 | . . 4 4 1 . . 9 1 . . . . . . . . . . . Flight 57 | . . . . . . . . 18 3 11 6 2 . . . . 6 6 5 Utility 126 | 2 2 2 4 5 1 1 15 5 6 23 5 11 1 . 5 1 14 13 10 Device 55 | 1 . 1 1 2 . . 4 2 4 7 3 5 . . 2 1 6 11 5 Storage 12 | 1 . . 1 3 1 . 2 . . 2 . . 1 . 1 . . . . Processor 22 | . 2 1 2 . . . 5 3 . 6 . 1 . . . . . . 2 Hackware 19 | . . . . . . 1 1 . . 6 . 5 . . . . 4 . 2 Protection 18 | . . . . . . . 3 . 2 2 2 . . . 2 . 4 2 1 Artifact . | . . . . . . . . . . . . . . . . . . . . Weapon 111 | 2 1 5 5 1 . . 10 9 11 12 17 4 . 5 2 . 1 16 10 Energy Gun 10 | 1 1 2 1 . . . . 1 1 2 1 . . . . . . . . Energy Cannon 5 | . . . . . . . 4 . . 1 . . . . . . . . . Ballistic Gun 49 | 1 . 1 1 1 . . . 5 7 8 16 2 . 3 . . . 4 . Ballistic Cannon 3 | . . . 1 . . . . . 2 . . . . . . . . . . Launcher 28 | . . 2 2 . . . 4 2 1 1 . 2 . 2 . . . 5 7 Special Weapon . | . . . . . . . . . . . . . . . . . . . . Impact Weapon 3 | . . . . . . . 2 1 . . . . . . . . . . . Slashing Weapon . | . . . . . . . . . . . . . . . . . . . . Piercing Weapon 13 | . . . . . . . . . . . . . . . 2 . 1 7 3 Special Melee Weapon . | . . . . . . . . . . . . . . . . . . . . Unidentified Prototypes 19 | . . . . . . . 2 4 . 10 . . . . 2 . 1 . . Corrupted Parts 1 | . . . . . . 1 . . . . . . . . . . . . . System Corruption 2 | . . . . . . 2 . . . . . . . . . . . . . Parts Lost 68 | . 2 7 7 1 . . 13 . 2 5 2 3 1 1 . 1 4 4 15 Power 10 | . . 1 2 . . . 2 . . . . . . 1 . . 1 1 2 Propulsion 31 | . . 4 2 1 . . 3 . 2 4 2 2 . . . . 2 2 7 Utility 15 | . 1 . 1 . . . 4 . . 1 . . . . . 1 1 . 6 Weapon 12 | . 1 2 2 . . . 4 . . . . 1 1 . . . . 1 . Highest Loss Streak 10 | . 2 5 3 1 . . 4 . 1 3 1 2 1 1 . 1 1 2 10 To Critical Strikes 2 | . . 1 . . . . 1 . . . . . . . . . . . . Average Slot Usage (%) 92 | . 96 93 83 90 100 100 79 99 99 97 92 97 89 91 92 96 93 92 63 Engine 4 | . 14 13 8 11 11 11 6 3 7 5 . . . . . . 4 1 . Core 1 | . . . . . . . . 3 . . . . . 2 1 . 3 8 4 Reactor 2 | . . . . . . . . . . 1 6 7 7 3 5 7 1 1 1 Hover 5 | . . 24 21 22 22 22 18 . . . . . . . . . . . . Flight 26 | . . . . . . . . 37 37 37 38 36 38 38 38 38 39 36 17 Device 5 | . 2 3 6 2 11 10 3 1 5 4 9 6 7 7 7 3 4 6 7 Storage 7 | . 14 14 11 22 22 22 10 . . . 7 7 14 15 9 7 6 6 4 Processor 15 | . 9 10 17 11 11 11 12 20 22 25 15 23 15 15 15 15 6 6 9 Hackware 4 | . . . . . . . 14 13 1 4 . . . . . . 10 11 9 Protection 2 | . . . . . . . . 2 7 2 2 . . . 5 7 1 1 . Energy Gun 1 | . 13 13 6 . . . . . . . . . . . . . . . . Ballistic Gun 8 | . 14 9 10 21 22 22 4 7 10 13 10 13 4 5 3 . . . . Piercing Weapon 1 | . . . . . . . . . . . . . . . 4 15 11 5 3 Naked Turns . | . . . . . . . . . . . . . . . . . . . . Heaviest Build 45 | 14 14 14 17 25 22 22 31 18 28 29 39 39 35 30 32 34 40 44 45 Greatest Support 51 | 26 20 24 24 24 24 24 32 30 29 46 44 42 37 32 32 32 32 51 51 Greatest Overweight (x) 3 | . . 1 . 1 . . 3 . 1 1 . . . . . 1 1 1 3 Average Overweight (x) . | . . . . . . . . . . . . . . . . . . . . Largest Inventory Capacity 10 | 8 8 8 8 8 8 8 8 5 5 10 10 10 10 10 10 10 10 10 10 Average Capacity 8 | 7 8 8 8 8 8 8 7 5 5 5 10 10 10 10 10 10 10 10 9 Most Carried 10 | 4 8 8 8 8 8 8 8 5 5 10 10 10 10 10 10 10 10 10 10 Average Carried 7 | . 5 7 6 7 7 8 6 4 4 5 9 7 9 9 9 9 9 9 8 Final Capacity 10 | 8 8 8 8 8 8 8 5 5 5 10 10 10 10 10 10 10 10 10 5 Final Carried 10 | 3 8 7 8 8 8 8 5 5 5 10 10 8 10 10 10 10 10 10 5 Class Distribution -------------------- 26% | Sprinter 13% | Commander-Sprinter 13% | Scavenger-Mutant 13% | Mutant 12% | Hacker-Sprinter 5% | Scout 5% | Commander-Scout 4% | Hacker-Mutant Dominant Class ---------------- Mutant | -10/Materials Scavenger-Mutant | -10/Mines Mutant | -9/Materials Mutant | -9/Mines Scavenger-Mutant | -9/Exiles Scavenger-Mutant | -8/Mines Hacker-Mutant | -8/Materials Hacker-Sprinter | -7/Factory Sprinter | -7/Garrison Sprinter | -7/Factory Sprinter | -7/Garrison Commander-Scout | -7/Factory Commander-Sprinter | -7/Lower Caves Commander-Sprinter | -7/Lower Caves Commander-Sprinter | -7/Zion Commander-Mutant | -6/Proximity Caves Commander-Sprinter | -6/Factory Hacker-Sprinter | -6/Garrison Hacker-Sprinter | -5/Factory Resources | -11 -10 -10 -9 -9 -9 -8 -8 -7 -7 -7 -7 -7 -7 -7 -7 -6 -6 -6 -5 ----------- Run | Yrd Mat Min Mat Min Exi Min Mat Fac Gar Fac Gar Fac Low Low Zio Pro Fac Gar Fac Matter Collected 8436 | 305 91 219 36 409 219 24 609 646 1081 1398 1065 845 25 153 70 10 275 735 221 Remotely 1009 | . . . . 207 . 24 137 176 465 . . . . . . . . . . Salvage Created 11119 | 197 373 318 265 320 . 50 1118 664 653 1333 1200 1351 75 120 . 62 843 1260 917 Parts 618 | 13 19 33 22 16 . 1 48 48 31 93 64 85 6 7 . 9 34 41 48 Haulers Intercepted 20 | . 1 . 2 . . . 4 4 . 6 . 1 . . . . 1 . 1 Recyclers Shooed 6 | . . . . 2 . . 1 . . . . 1 . . . . 2 . . Parts Field Recycled . | . . . . . . . . . . . . . . . . . . . . Retrieved Matter . | . . . . . . . . . . . . . . . . . . . . Parts Self-Destructed 21 | . . . . . . . . . . . . . 6 6 . 9 . . . Prevented 12 | . . . . . . . . . . . . . 1 2 . 9 . . . Kills | -11 -10 -10 -9 -9 -9 -8 -8 -7 -7 -7 -7 -7 -7 -7 -7 -6 -6 -6 -5 ------- Run | Yrd Mat Min Mat Min Exi Min Mat Fac Gar Fac Gar Fac Low Low Zio Pro Fac Gar Fac Combat Hostiles Destroyed 171 | . 3 23 5 . . . 18 9 16 10 22 18 1 4 . 1 8 18 15 Melee 12 | . . . . . . . . 1 . . . . . . . 1 8 2 . Guns 71 | . 3 9 2 . . . 2 2 12 10 22 7 1 . . . . 1 . Cannons 4 | . . . . . . . 2 . 2 . . . . . . . . . . AOE 81 | . . 14 3 . . . 11 6 2 . . 11 . 4 . . . 15 15 Classes Destroyed 19 | 3 4 2 1 . . . 4 2 1 1 . . . . . 1 . . . Worker 33 | 2 . 1 . . . . 3 6 . 6 . 7 . . . . 1 . 7 Builder 12 | . 1 . . . . . . 2 . 2 . 1 . . . . . . 6 Tunneler 7 | 3 . 1 . 1 . . 1 . . . . . . . . . . . 1 Hauler 20 | . 1 . 2 . . . 4 4 . 6 . 1 . . . . 1 . 1 Recycler 22 | 1 1 . . 4 . 1 3 . . 3 . 5 . . . . 2 . 2 Carrier 1 | . . . . . . . 1 . . . . . . . . . . . . Minesweeper 1 | . . . . . . . . . . . . . . . . 1 . . . Mechanic 4 | . . . . . . . 2 2 . . . . . . . . . . . Operator 8 | . . . 1 . . . 2 1 . 3 . . . . . . 1 . . Watcher 12 | . 2 . 2 . . . 2 1 . 2 . 1 . . . . 1 . 1 Swarmer 46 | . . 11 . . . . 4 3 1 2 6 5 . 3 . . 2 9 . Grunt 67 | . 3 2 5 . . . 10 2 8 1 7 7 . 1 . . 4 6 11 Duelist 1 | . . . . . . . 1 . . . . . . . . . . . . Protector 1 | . . . . . . . . . . 1 . . . . . . . . . Sentry 23 | . . . . . . . 3 2 3 . 8 3 1 . . . 2 1 . Specialist 5 | . . . . . . . . . 2 2 . 1 . . . . . . . Hunter 6 | . . . . . . . . 1 . 1 1 . . . . . . . 3 Programmer 15 | . . . . . . . . 1 2 3 . 4 . 1 . 1 . 2 1 Assembled 10 | . . 10 . . . . . . . . . . . . . . . . . Best Kill Streak 22 | 4 7 7 5 2 . 1 6 4 5 7 8 11 1 3 . 1 4 5 22 Combat Bots Only 8 | . 3 7 2 . . . 4 3 5 4 8 7 1 3 . 1 2 5 6 Max Kills in Single Turn 4 | 1 2 4 2 1 . 1 3 3 1 2 2 3 1 3 . 1 1 3 4 Gunslinging . | . . . . . . . . . . . . . . . . . . . . Exploded 4 | . . 4 2 . . . 3 3 1 . . 3 . 3 . . . 3 4 Melee 1 | . . . . . . . . 1 . . . . . . . 1 1 1 . Uniques/NPCs Destroyed . | . . . . . . . . . . . . . . . . . . . . Combat | -11 -10 -10 -9 -9 -9 -8 -8 -7 -7 -7 -7 -7 -7 -7 -7 -6 -6 -6 -5 -------- Run | Yrd Mat Min Mat Min Exi Min Mat Fac Gar Fac Gar Fac Low Low Zio Pro Fac Gar Fac Hostile Shots Fired 1117 | . 16 72 84 11 . . 132 88 82 131 169 70 10 5 . 3 28 74 142 Missed 498 | . 5 24 38 5 . . 46 57 37 74 80 33 6 1 . . 6 30 56 Damage Taken 9389 | . 190 611 637 85 . . 1456 443 557 968 811 486 98 151 . 83 291 634 1888 Core 2683 | . 21 200 141 17 . . 450 82 37 290 132 49 6 82 . 15 36 125 1000 Absorbed by Shields 44 | . . . . . . . . . 36 8 . . . . . . . . . Redirected to Shielding 177 | . . . . . . . 10 54 6 107 . . . . . . . . . Regen/Repaired (Parts) 112 | . . . . . . . 112 . . . . . . . . . . . . Core Remaining (%) 43 | 100 . 11 . . . 60 9 . . . . . . . . 1 . 81 . Volleys Fired 652 | 22 24 54 23 13 . 4 65 36 90 110 83 71 4 7 . . . 30 16 Largest 2 | 2 2 2 2 2 . 2 2 2 2 2 2 2 1 1 . . . 1 1 Hottest 100 | 60 60 70 60 46 . 46 100 70 81 63 95 72 33 39 . . . 52 52 Shots Fired 1026 | 44 46 74 41 26 . 8 79 66 146 200 129 110 4 7 . . . 30 16 Gun 874 | 44 46 65 35 26 . 8 42 59 105 198 129 100 4 . . . . 13 . Cannon 59 | . . . 1 . . . 20 . 38 . . . . . . . . . . Launcher 93 | . . 9 5 . . . 17 7 3 2 . 10 . 7 . . . 17 16 Special . | . . . . . . . . . . . . . . . . . . . . Kinetic 804 | 22 24 19 20 26 . 8 42 59 143 198 126 100 4 . . . . 13 . Thermal 20 | . . . . . . . 20 . . . . . . . . . . . . Explosive 89 | . . 9 5 . . . 13 7 3 2 . 10 . 7 . . . 17 16 Electromagnetic 113 | 22 22 46 16 . . . 4 . . . 3 . . . . . . . . Robot Hit Streak 24 | 4 6 13 15 13 . 20 21 15 22 24 16 11 14 1 . . . 4 9 Robot Miss Streak 5 | 3 3 5 1 2 . . 4 3 2 3 2 3 1 3 . . . 4 1 Penetration Max 2 | . . . . . . . . . 1 1 2 2 . . . . . . . Secondary Targets 2 | . . . . . . . . . . 1 1 . . . . . . . . Max Gunslinging Chain 1 | . . . . . . . . . . 1 1 . . . . . . . . Shots Hit Robots 705 | 25 32 41 28 17 . 7 54 62 83 125 77 63 3 2 . 3 31 38 14 Core Hits 513 | 11 13 37 20 7 . 2 42 41 33 59 45 56 4 10 . 2 15 46 70 Critical Kills 26 | . . . . . . . 4 . 1 5 12 3 1 . . . . . . Critical Parts Destroyed 42 | . . . . . . . 1 3 . 13 13 12 . . . . . . . Critical Strikes 81 | 1 . 1 . . . . 5 3 1 19 29 15 1 . . 1 2 3 . Meltdown 4 | . . . . . . . 4 . . . . . . . . . . . . Destroy 65 | . . . . . . . . . 1 19 29 15 1 . . . . . . Corrupt 2 | 1 . 1 . . . . . . . . . . . . . . . . . Smash 4 | . . . . . . . 1 3 . . . . . . . . . . . Impale 6 | . . . . . . . . . . . . . . . . 1 2 3 . Melee Attacks 125 | . . . . . . . 2 18 . . . . . . 1 3 43 47 11 Impact 20 | . . . . . . . 2 18 . . . . . . . . . . . Slashing . | . . . . . . . . . . . . . . . . . . . . Piercing 105 | . . . . . . . . . . . . . . . 1 3 43 47 11 Sneak Attacks 16 | . . . . . . . 1 3 . . . . . . . 2 8 . 2 Combat Hostiles 5 | . . . . . . . . 1 . . . . . . . 1 3 . . Follow-up Attacks 5 | . . . . . . . . 2 . . . . . . . . 3 . . Damage Inflicted 30048 | 332 456 1319 927 265 . 103 4199 2094 1922 3172 1475 2373 27 615 . 180 1341 4317 4931 Guns 9811 | 265 349 380 265 265 . 103 452 777 1349 3046 1475 904 27 . . . . 154 . Cannons 1824 | . . . . . . . 1445 . 379 . . . . . . . . . . Explosions 13975 | 67 107 939 657 . . . 2211 562 194 126 . 1469 . 615 . . . 2431 4597 Melee 4432 | . . . . . . . 91 755 . . . . . . . 180 1341 1732 333 Ramming 6 | . . . 5 . . . . . . . . . . . . . . . 1 Kinetic 9256 | 79 110 65 113 265 . 103 452 777 1728 3046 1433 904 27 . . . . 154 . Thermal 3586 | 67 107 111 131 . . . 2918 . . . . 198 . . . . . . 54 Explosive 11267 | . . 828 526 . . . 526 507 194 . . 1271 . 615 . . . 2431 4369 Electromagnetic 1501 | 186 239 315 152 . . . 212 55 . 126 42 . . . . . . . 174 Impact 846 | . . . . . . . 91 755 . . . . . . . . . . . Slashing . | . . . . . . . . . . . . . . . . . . . . Piercing 3586 | . . . . . . . . . . . . . . . . 180 1341 1732 333 Highest Corruption 4 | . . . . . . 2 . 1 1 2 . . 1 3 3 . . . 4 Average Corruption 1 | . . . . . . 2 . 1 1 1 . . 1 2 3 . . . 3 Corruption Purged 3 | . . . . . . . . . . 3 . . . . . . . . . Corruption Blocked . | . . . . . . . . . . . . . . . . . . . . Effects 31 | . . . . . . . . 7 13 4 . . 1 2 1 . . . 3 Message Errors 9 | . . . . . . . . 1 5 1 . . . 1 1 . . . . Matter Fused 7 | . . . . . . . . 3 2 2 . . . . . . . . . Heat Flow Errors 7 | . . . . . . . . 2 3 . . . 1 . . . . . 1 Energy Discharges 2 | . . . . . . . . 1 . . . . . . . . . . 1 Parts Fused 1 | . . . . . . . . . 1 . . . . . . . . . . Data Loss (minor) 3 | . . . . . . . . . 1 . . . . 1 . . . . 1 Misfires 1 | . . . . . . . . . . 1 . . . . . . . . . Alerts 1 | . . . . . . . . . 1 . . . . . . . . . . Overload Shots . | . . . . . . . . . . . . . . . . . . . . Overflow Damage 1799 | . 26 49 17 . . . 629 312 18 . . 25 . 19 . 28 183 127 366 Projectiles 493 | . . . . . . . 475 . 18 . . . . . . . . . . Explosions 674 | . 26 49 17 . . . 124 12 . . . 25 . 19 . . . 42 360 Melee 632 | . . . . . . . 30 300 . . . . . . . 28 183 85 6 Knockbacks 4 | . . . . . . . . 1 3 . . . . . . . . . . Impact 1 | . . . . . . . . 1 . . . . . . . . . . . Kinetic 3 | . . . . . . . . . 3 . . . . . . . . . . Secondary . | . . . . . . . . . . . . . . . . . . . . Self-Inflicted Damage 616 | . 57 . 41 . . . 223 87 . 29 . 76 . 60 . . . 43 . Shots 18 | . 2 . 1 . . . 4 5 . 1 . 3 . 1 . . . 1 . Rammed 3 | . . . 1 . . . . . . . . . . . . . . . 2 Targets Rammed 3 | . . . 1 . . . . . . . . . . . . . . . 2 Kicked . | . . . . . . . . . . . . . . . . . . . . Crushed . | . . . . . . . . . . . . . . . . . . . . Highest Temperature 346 | 40 109 86 48 . . . 107 205 346 83 63 18 113 3 . . 145 81 288 Average Temperature 34 | 20 34 23 18 . . . 28 37 53 19 12 4 61 3 . . 43 18 115 Received Heat Transfer 2439 | . 96 78 324 48 . . 594 51 229 36 192 126 18 9 . . 128 153 357 Effects 4 | . . . . . . . . . 4 . . . . . . . . . . Shutdowns 1 | . . . . . . . . . 1 . . . . . . . . . . Energy Bleed 1 | . . . . . . . . . 1 . . . . . . . . . . Interference 2 | . . . . . . . . . 2 . . . . . . . . . . Siege Activations . | . . . . . . . . . . . . . . . . . . . . Robots Corrupted . | . . . . . . . . . . . . . . . . . . . . Combat Hostiles . | . . . . . . . . . . . . . . . . . . . . Parts Fried 12 | . . 2 . . . . . 9 . . 1 . . . . . . . . Impact Corruptions 9 | . . . . . . . 1 8 . . . . . . . . . . . Robots Melted 6 | . . . . . . . 6 . . . . . . . . . . . . Combat Hostiles 3 | . . . . . . . 3 . . . . . . . . . . . . Parts Melted 5 | . . . . . . . 5 . . . . . . . . . . . . Heat Transferred 3310 | 100 200 50 100 . . . 2560 . . . . 250 . . . . . . 50 Parts Sabotaged . | . . . . . . . . . . . . . . . . . . . . Parts Stolen . | . . . . . . . . . . . . . . . . . . . . Parts Stripped . | . . . . . . . . . . . . . . . . . . . . Power Chain Reactions 9 | 2 2 1 1 . . . . 1 . . . . . . . . . . 2 Alert | -11 -10 -10 -9 -9 -9 -8 -8 -7 -7 -7 -7 -7 -7 -7 -7 -6 -6 -6 -5 ------- Run | Yrd Mat Min Mat Min Exi Min Mat Fac Gar Fac Gar Fac Low Low Zio Pro Fac Gar Fac Peak Influence 3003 | 30 184 351 320 261 . 5 884 987 2228 2004 2541 3003 . . . . 648 1688 2555 Initial 1334 | . 19 71 42 83 . . 1 387 690 1169 1334 1333 . . . . 102 231 886 Average 1058 | 9 110 167 154 174 . . 299 677 1699 1475 1787 1785 . . . . 342 1165 1628 Maximum Alert Level 5 | . . 1 1 1 . . 3 3 5 5 5 5 . . . . 2 5 5 Low Security (%) 22 | 100 100 71 72 67 . 100 60 . . . . . . . . . 13 . . Level 1 9 | . . 28 27 32 . . 8 2 . . . . . . . . 66 3 . Level 2 7 | . . . . . . . 12 54 2 . . . . . . . 19 15 . Level 3 8 | . . . . . . . 19 43 9 . . . . . . . . 26 8 Level 4 27 | . . . . . . . . . 20 78 42 56 . . . . . 44 49 Level 5 22 | . . . . . . . . . 67 21 57 30 . . . . . 10 . High Security 2 | . . . . . . . . . . . . 13 . . . . . . 41 Max Security . | . . . . . . . . . . . . . . . . . . . . Squads Dispatched 72 | . 2 . 1 . . . 6 8 . 12 . 20 . . . . 7 . 16 Investigation 24 | . 2 . . . . . 2 2 . 4 . 6 . . . . 5 . 3 Extermination 4 | . . . . . . . . 1 . 2 . 1 . . . . . . . Reinforcement 19 | . . . 1 . . . 2 3 . 4 . 4 . . . . 2 . 3 Assault 14 | . . . . . . . 2 1 . 2 . 5 . . . . . . 4 Garrison 11 | . . . . . . . . 1 . . . 4 . . . . . . 6 Intercept . | . . . . . . . . . . . . . . . . . . . . Searches Triggered . | . . . . . . . . . . . . . . . . . . . . Construction Impeded 3 | . . . . . . . . . . 1 . . . . . . . . 2 Haulers Reinforced 4 | . . . . . . . . 1 . 1 . 1 . . . . . . 1 Active Scanning Responses . | . . . . . . . . . . . . . . . . . . . . Cargo Convoy Interrupts 1 | . . . . . . . . . . 1 . . . . . . . . . Stealth | -11 -10 -10 -9 -9 -9 -8 -8 -7 -7 -7 -7 -7 -7 -7 -7 -6 -6 -6 -5 --------- Run | Yrd Mat Min Mat Min Exi Min Mat Fac Gar Fac Gar Fac Low Low Zio Pro Fac Gar Fac Distress Signals 11 | . . 1 1 . . . 1 3 . 1 . 2 . . . . 1 . 1 Communications Jammed . | . . . . . . . . . . . . . . . . . . . . Distress Signals . | . . . . . . . . . . . . . . . . . . . . Times Spotted 353 | . 8 27 23 9 . . 31 31 34 46 19 34 4 5 . 5 12 29 36 Peak Tracking Total 18 | . 3 11 11 5 . . 5 8 7 12 8 4 3 4 . 2 6 8 18 Tactical Retreats 42 | . 1 4 3 3 . . 4 6 5 5 3 1 1 . . . 1 1 4 Traps | -11 -10 -10 -9 -9 -9 -8 -8 -7 -7 -7 -7 -7 -7 -7 -7 -6 -6 -6 -5 ------- Run | Yrd Mat Min Mat Min Exi Min Mat Fac Gar Fac Gar Fac Low Low Zio Pro Fac Gar Fac Traps Triggered 33 | . 2 . 1 . . . 1 2 15 3 4 2 . . . . . 2 1 Indirectly 3 | . . . . . . . . . . 2 . 1 . . . . . . . Trap Hack Attempts . | . . . . . . . . . . . . . . . . . . . . Triggered . | . . . . . . . . . . . . . . . . . . . . Disarmed . | . . . . . . . . . . . . . . . . . . . . Reprogrammed 9 | . . . . . . . . . . 4 . . . . . . . . 5 Reused 4 | . . . . . . . 2 . . 1 . . . . . . . . 1 Traps Extracted . | . . . . . . . . . . . . . . . . . . . . Installed 4 | . . . . 2 . . 2 . . . . . . . . . . . . Triggered 6 | . . 1 . . . . 2 . . 1 . . . . . 1 . . 1 Most Traps Carried 2 | . . . . 2 2 2 2 . . . . . . . . . . . . Machines | -11 -10 -10 -9 -9 -9 -8 -8 -7 -7 -7 -7 -7 -7 -7 -7 -6 -6 -6 -5 ---------- Run | Yrd Mat Min Mat Min Exi Min Mat Fac Gar Fac Gar Fac Low Low Zio Pro Fac Gar Fac Machines Disabled 136 | . 1 . 4 . . . 10 9 11 29 9 20 . . . . . 7 36 Max in Single Turn 9 | . 1 . 2 . . . 4 5 2 9 2 4 . . . . . 1 8 Garrison Access 1 | . . . . . . . 1 . . . . . . . . . . . . Garrison Relay 15 | . . . . . . . . . 5 . 6 . . . . . . 4 . Phase Generator 2 | . . . . . . . . . 1 . 1 . . . . . . . . Machines Repaired . | . . . . . . . . . . . . . . . . . . . . Machines Dismantled . | . . . . . . . . . . . . . . . . . . . . Machines Sabotaged . | . . . . . . . . . . . . . . . . . . . . Overloaded Fab Kills . | . . . . . . . . . . . . . . . . . . . . Hacking | -11 -10 -10 -9 -9 -9 -8 -8 -7 -7 -7 -7 -7 -7 -7 -7 -6 -6 -6 -5 --------- Run | Yrd Mat Min Mat Min Exi Min Mat Fac Gar Fac Gar Fac Low Low Zio Pro Fac Gar Fac Machines Accessed 84 | . 1 . 6 . 5 . 7 8 4 15 5 13 . 1 1 . 10 1 7 Terminals 46 | . 1 . 5 . . . 4 2 4 11 5 7 . . . . 3 1 3 Fabricators 15 | . . . . . . . . 3 . 3 . 3 . . . . 5 . 1 Repair Stations 6 | . . . 1 . . . 1 1 . . . 2 . . . . 1 . . Recycling Units 1 | . . . . . . . 1 . . . . . . . . . . . . Scanalyzers 3 | . . . . . . . 1 1 . . . . . . . . . . 1 Garrison Access 6 | . . . . . . . . 1 . 1 . 1 . . . . 1 . 2 Total Hacks 302 | . 5 . 25 . 50 . 29 36 7 43 6 40 . 2 4 . 25 7 23 Successful 180 | . 1 . 11 . 50 . 19 23 4 19 4 17 . 2 4 . 14 3 9 Failed 120 | . 4 . 13 . . . 10 13 3 23 2 23 . . . . 11 4 14 Catastrophic 25 | . . . 3 . . . 1 . 1 8 1 7 . . . . 2 . 2 Database Lockouts 2 | . . . 1 . . . . . . 1 . . . . . . . . . Manual 55 | . . . 14 . 1 . 12 . . 13 . 5 . . 1 . 3 2 4 Terminals 136 | . 5 . 23 . . . 16 7 7 31 6 15 . . . . 7 7 12 Fabricators 50 | . . . . . . . . 8 . 11 . 15 . . . . 14 . 2 Repair Stations 19 | . . . 2 . . . 4 6 . . . 4 . . . . 3 . . Recycling Units 3 | . . . . . . . 3 . . . . . . . . . . . . Scanalyzers 24 | . . . . . . . 6 14 . . . . . . . . . . 4 Garrison Access 14 | . . . . . . . . 1 . 1 . 6 . . . . 1 . 5 Terminal Hacks 104 | . 1 . 11 . 50 . 7 2 4 8 4 4 . 2 4 . 3 3 1 Record 54 | . . . 3 . 49 . . . . . . . . 2 . . . . . Part Schematic 5 | . . . . . . . . . . . . 1 . . 4 . . . . Robot Schematic 1 | . . . . . . . . . . 1 . . . . . . . . . Robot Analysis 5 | . . . 1 . . . 3 . . . . 1 . . . . . . . Prototype ID Bank 5 | . . . 2 . . . 1 1 . 1 . . . . . . . . . Open Door 3 | . . . . . . . . . 1 . 1 . . . . . . 1 . Open DSF 1 | . . . . . . . . . . 1 . . . . . . . . . Level Access Points 1 | . . . . . . . . . . 1 . . . . . . . . . Branch Access Points 6 | . 1 . 1 . . . . 1 . 1 . 1 . . . . 1 . . Emergency Access Points 1 | . . . . . . . . . 1 . . . . . . . . . . Terminal Index 3 | . . . 1 . . . 1 . . 1 . . . . . . . . . Unreport Threat 1 | . . . 1 . . . . . . . . . . . . . . . . Locate Traps 1 | . . . . . . . . . . . . . . . . . 1 . . Reprogram Traps 2 | . . . . . . . . . . 1 . . . . . . . . 1 Recall Investigation 1 | . . . . . . . . . . . . . . . . . 1 . . Recall Reinforcements 1 | . . . 1 . . . . . . . . . . . . . . . . Zone Layout 5 | . . . 1 . . . 2 . . 1 . 1 . . . . . . . Garrison Registry 3 | . . . . . . . . . 1 . 1 . . . . . . 1 . Patrol Navigation 3 | . . . . . . . . . 1 . 1 . . . . . . 1 . Security Stations 1 | . . . . . . . . . . . 1 . . . . . . . . Derelict Proto ID Bank 1 | . . . . . 1 . . . . . . . . . . . . . . Fabricator Hacks 37 | . . . . . . . . 5 . 10 . 11 . . . . 10 . 1 Network Status 3 | . . . . . . . . 1 . 1 . 1 . . . . . . . Load Schematic 15 | . . . . . . . . 1 . 4 . 5 . . . . 4 . 1 Build 19 | . . . . . . . . 3 . 5 . 5 . . . . 6 . . Repair Station Hacks 7 | . . . . . . . 4 1 . . . 2 . . . . . . . Scan Component 5 | . . . . . . . 2 1 . . . 2 . . . . . . . Repair 2 | . . . . . . . 2 . . . . . . . . . . . . Recycling Unit Hacks 2 | . . . . . . . 2 . . . . . . . . . . . . Retrieve Matter 1 | . . . . . . . 1 . . . . . . . . . . . . Retrieve Components 1 | . . . . . . . 1 . . . . . . . . . . . . Scanalyzer 23 | . . . . . . . 6 14 . . . . . . . . . . 3 Insert Component 11 | . . . . . . . 3 6 . . . . . . . . . . 2 Analyze 12 | . . . . . . . 3 8 . . . . . . . . . . 1 Garrison Access Hacks 4 | . . . . . . . . 1 . 1 . . . . . . 1 . 1 Unlock Access 4 | . . . . . . . . 1 . 1 . . . . . . 1 . 1 Unauthorized Hacks 3 | . . . . . . . . . . . . . . . . . . . 3 Terminals 3 | . . . . . . . . . . . . . . . . . . . 3 Botnet 3 | . . . . . . . . . . . . . . . . . . . 3 Fabricators . | . . . . . . . . . . . . . . . . . . . . Repair Stations . | . . . . . . . . . . . . . . . . . . . . Recycling Units . | . . . . . . . . . . . . . . . . . . . . Scanalyzers . | . . . . . . . . . . . . . . . . . . . . Garrison Access . | . . . . . . . . . . . . . . . . . . . . Data Cores Recovered 4 | . . . . . . . . 1 . 3 . . . . . . . . . Used 3 | . . . . . . . . 1 . 2 . . . . . . . . . Hacking Detections 65 | . 1 . 5 . . . 6 5 3 12 3 13 . . . . 9 1 7 Full Trace Events 24 | . 1 . 1 . . . 2 2 1 3 . 3 . . . . 5 3 3 Feedback Events . | . . . . . . . . . . . . . . . . . . . . Feedback Blocked . | . . . . . . . . . . . . . . . . . . . . Robot Schematics Acquired 4 | . . . . . . . . . . 1 . . . . 3 . . . . Robots Built 25 | . . . . . . . . . . 8 . 10 . . . . 7 . . Authchips 8 | . . . . . . . . . . 3 . 5 . . . . . . . Time 1237 | . . . . . . . . 116 . 402 . 335 . . . . 384 . . Total Robot Build Rating 97 | . . . . . . . . . . 32 . 40 . . . . 25 . . Part Schematics Acquired 29 | . . . . . . . 2 6 . . . 1 . . 19 . . . 1 Parts Built 9 | . . . . . . . . 3 . 2 . . . . . . 4 . . Authchips . | . . . . . . . . . . . . . . . . . . . . Time 519 | . . . . . . . . 162 . 95 . . . . . . 262 . . Total Part Build Rating 46 | . . . . . . . . 12 . 10 . . . . . . 24 . . Parts Repaired 1 | . . . . . . . 1 . . . . . . . . . . . . Time 100 | . . . . . . . 100 . . . . . . . . . . . . Parts Recycled . | . . . . . . . . . . . . . . . . . . . . Recycled Matter . | . . . . . . . . . . . . . . . . . . . . Retrieved Matter . | . . . . . . . . . . . . . . . . . . . . Retrieved Components . | . . . . . . . . . . . . . . . . . . . . Parts Scanalyzed 11 | . . . . . . . 3 6 . . . . . . . . . . 2 Part Schematics Acquired 9 | . . . . . . . 2 6 . . . . . . . . . . 1 Parts Damaged 1 | . . . . . . . . . . . . . . . . . . . 1 Bothacking | -11 -10 -10 -9 -9 -9 -8 -8 -7 -7 -7 -7 -7 -7 -7 -7 -6 -6 -6 -5 ------------ Run | Yrd Mat Min Mat Min Exi Min Mat Fac Gar Fac Gar Fac Low Low Zio Pro Fac Gar Fac Used RIF Installer . | . . . . . . . . . . . . . . . . . . . . Robots Hacked . | . . . . . . . . . . . . . . . . . . . . Non-combat . | . . . . . . . . . . . . . . . . . . . . Combat . | . . . . . . . . . . . . . . . . . . . . Robot Hacks Applied . | . . . . . . . . . . . . . . . . . . . . Relay Couplers Released 58 | . . . . . . . 1 . 19 . 24 . . . . . . 14 . Machine Destruction 55 | . . . . . . . 1 . 16 . 24 . . . . . . 14 . Programmers 3 | . . . . . . . . . 3 . . . . . . . . . . Fabnet Peak Effective % . | . . . . . . . . . . . . . . . . . . . . Robots Rewired 6 | . . . . . . . . . 6 . . . . . . . . . . Allies Hacked 6 | . . . . . . . . . . 1 . 4 . 1 . . . . . Hacks Repelled . | . . . . . . . . . . . . . . . . . . . . Allies | -11 -10 -10 -9 -9 -9 -8 -8 -7 -7 -7 -7 -7 -7 -7 -7 -6 -6 -6 -5 -------- Run | Yrd Mat Min Mat Min Exi Min Mat Fac Gar Fac Gar Fac Low Low Zio Pro Fac Gar Fac Total Allies 54 | . . 2 . 3 . . . . 8 10 2 14 . 1 4 . 8 2 . Largest Group 13 | . . 2 . 3 3 3 3 . 3 4 2 11 10 8 12 11 13 10 5 Highest-Rated Group 386 | . . 41 . 40 40 40 40 . 160 149 51 386 324 246 331 315 339 242 179 Highest-Rated Ally 80 | . . 31 . 16 16 16 16 . 80 38 31 37 37 37 37 37 37 51 51 Warlord Squad Rendezvous 1 | . . . . . . . . . . . . . . . . . . . 1 Dakka 1 | . . . . . . . . . . . . . . . . . . . 1 Total Orders 31 | . . . . . . . . . . 3 . 11 2 . . . 6 8 1 STAY 14 | . . . . . . . . . . 2 . 7 1 . . . 1 2 1 FOLLOW 9 | . . . . . . . . . . 1 . 4 1 . . . 1 2 . RETURN 8 | . . . . . . . . . . . . . . . . . 4 4 . Ally Attacks 407 | . . 15 . 5 . . 8 . 73 48 8 72 10 17 . 33 56 38 24 Total Damage 9750 | . . 188 . 63 . . 81 . 2006 937 168 2152 446 316 . 533 1299 951 610 Kills 95 | . . 3 . 2 . . 1 . 18 9 . 17 4 5 . 6 11 14 5 Allies Corrupted . | . . . . . . . . . . . . . . . . . . . . Allies Melted . | . . . . . . . . . . . . . . . . . . . . Intel | -11 -10 -10 -9 -9 -9 -8 -8 -7 -7 -7 -7 -7 -7 -7 -7 -6 -6 -6 -5 ------- Run | Yrd Mat Min Mat Min Exi Min Mat Fac Gar Fac Gar Fac Low Low Zio Pro Fac Gar Fac Robot Analysis Total 5 | . . . 1 . . . 3 . . . . 1 . . . . . . . Derelict Logs Recovered 5 | . . 1 . 1 . . . . . . . . 1 . 1 1 . . . Drone Launches 9 | . . . . . . . . . . . . . . . . . 5 4 . Drone Recoveries 9 | . . . . . . . . . . . . . . . . . 5 4 . Exploration | -11 -10 -10 -9 -9 -9 -8 -8 -7 -7 -7 -7 -7 -7 -7 -7 -6 -6 -6 -5 ------------- Run | Yrd Mat Min Mat Min Exi Min Mat Fac Gar Fac Gar Fac Low Low Zio Pro Fac Gar Fac Turns Passed 11829 | 127 168 1107 314 340 239 134 916 632 1388 1233 1415 827 270 208 523 283 523 860 322 Spaces Moved 17071 | 59 98 1227 296 332 295 150 824 1319 1898 2435 1314 1495 524 392 1165 437 1100 1157 554 Core 105 | 3 . . . . . . 12 . . . . . . . . . . . 90 Treads . | . . . . . . . . . . . . . . . . . . . . Legs 30 | . . . . . . . 30 . . . . . . . . . . . . Wheels 214 | 56 98 60 . . . . . . . . . . . . . . . . . Hover 3022 | . . 1167 296 332 295 150 782 . . . . . . . . . . . . Flight 13700 | . . . . . . . . 1319 1898 2435 1314 1495 524 392 1165 437 1100 1157 464 Fastest Speed 20 | 50 80 60 66 66 77 77 52 24 26 25 25 23 26 29 29 29 20 20 20 Average Speed 36 | 85 80 74 72 77 77 77 71 25 29 27 27 26 28 29 29 51 20 23 33 Slowest Speed 200 | 90 80 120 80 147 77 77 200 28 106 96 32 28 29 29 29 99 95 91 200 Overloaded Moves . | . . . . . . . . . . . . . . . . . . . . Propulsion Burnouts . | . . . . . . . . . . . . . . . . . . . . Robots Hopped 66 | . . . . . . . . 14 . 21 . 28 3 . . . . . . Cave-ins Triggered . | . . . . . . . . . . . . . . . . . . . . Exploration Rate (%) 55 | 4 28 100 34 80 70 51 54 28 98 42 79 40 51 68 87 70 18 87 22 Regions Visited 19 Branch Regions 8 Pre-discovered Areas 8 | . . . . 1 1 . . . . . . . 1 . 4 1 . . . Known Exits Taken 7 | . 1 . 1 . . . . 1 . 1 . 1 . . . 1 1 . . Unknown Exits Taken 9 | 1 . 1 . 1 1 1 1 . . . . . 1 1 1 . . . . Scrap Searched 9 | . . 1 . . . . . . . . . . 1 4 2 1 . . . Spaces Dug 95 | . . . . . . . 17 42 . 34 1 . . . . . . . 1 Terrain Destroyed 1527 | 4 6 54 22 . . . 259 129 80 105 89 228 . 81 . . . 262 208 Melee 5 | . . . . . . . . 4 . . . . . . . . . . 1 Projectile 23 | . . . . . . . 7 1 1 6 2 5 . . . . . 1 . AOE 1498 | 4 6 54 22 . . . 252 124 79 99 87 222 . 81 . . . 261 207 Terrain Rammed . | . . . . . . . . . . . . . . . . . . . . Walls Destroyed . | . . . . . . . . . . . . . . . . . . . . Machines Disabled . | . . . . . . . . . . . . . . . . . . . . Actions | -11 -10 -10 -9 -9 -9 -8 -8 -7 -7 -7 -7 -7 -7 -7 -7 -6 -6 -6 -5 --------- Run | Yrd Mat Min Mat Min Exi Min Mat Fac Gar Fac Gar Fac Low Low Zio Pro Fac Gar Fac Total 21311 | 92 146 1341 355 388 309 159 1026 1511 2603 2778 2239 1780 635 478 1352 492 1349 1629 649 Wait 2464 | . 14 38 7 29 8 5 47 64 337 148 704 217 107 69 161 46 161 283 19 Move 16927 | 58 97 1226 295 331 294 149 823 1294 1897 2392 1313 1441 517 391 1164 436 1099 1156 554 Hop 59 | . . . . . . . . 10 . 21 . 25 3 . . . . . . Pick Up 135 | 3 6 6 9 2 2 . 16 17 7 13 15 7 1 3 6 3 5 8 6 Fast Attach 111 | 7 2 3 4 2 . . 16 9 8 26 3 1 1 1 7 1 6 9 5 Attach 87 | . 1 6 6 2 . . 16 7 1 7 10 7 . 1 . . 6 6 11 Detach 73 | . 1 2 . . . . 13 8 2 18 6 . 2 . . . 3 9 9 Swap 160 | 1 . 5 6 3 1 1 9 21 11 16 18 9 . 4 1 . 17 27 10 Drop 171 | 1 1 1 4 4 4 . 17 29 16 27 15 2 . 2 12 3 8 19 6 Fire 652 | 22 24 54 23 13 . 4 65 36 90 110 83 71 4 7 . . . 30 16 Melee 119 | . . . . . . . 2 16 . . . . . . 1 3 39 47 11 Ram 3 | . . . 1 . . . . . . . . . . . . . . . 2 Kick . | . . . . . . . . . . . . . . . . . . . . Crush . | . . . . . . . . . . . . . . . . . . . . Escape Stasis 299 | . . . . . . . . . 192 . 72 . . . . . . 35 . Rewire 47 | . . . . . . . . . 42 . . . . . . . 5 . . Trap 4 | . . . . 2 . . 2 . . . . . . . . . . . . Miscellaneous . | . . . . . . . . . . . . . . . . . . . . Route ------- -11/Scrapyard -10/Materials -10/Mines (discovered 3 exits: *Mat x2 / [*Sub]) -9/Materials (discovered 2 exits: *Mat / *Min) -9/Mines (discovered 3 exits: *Mat x2 / *Exi) -9/Exiles -8/Mines -8/Materials -7/Factory (discovered 4 exits: Sto / Low x2 / Gar) -7/Garrison (discovered 4 exits: *Fac x4) -7/Factory (discovered 9 exits: Fac x4 / *Sto x2 / Low x2 / Gar) -7/Garrison (discovered 3 exits: *Fac x3) -7/Factory (discovered 5 exits: *Fac / Sto x2 / *Low x2) -7/Lower Caves -7/Lower Caves -7/Zion -6/Proximity Caves -6/Factory (discovered 7 exits: Fac x4 / Low x2 / Gar) -6/Garrison (discovered 3 exits: *Fac x3) -5/Factory (discovered 2 exits: [*Fac] / Gar) History --------- Turn | Location | Event 15 | -11/Scrapyard | Discovered new exit (range 15) 128 | -11/Scrapyard | Entered Materials 271 | -10/Materials | Identified exit to Mines 296 | -10/Materials | Entered Mines 304 | -10/Mines | Build established: Mutant 318 | -10/Mines | Assembled infested the area 320 | -10/Mines | Learned Materials security intel 358 | -10/Mines | Core integrity fell below 50% 375 | -10/Mines | Destroyed 7 combat bots 413 | -10/Mines | Lost 5 parts (1p3n1w) 585 | -10/Mines | Core integrity fell below 20% 797 | -10/Mines | Discovered new exit (range 12) 808 | -10/Mines | Discovered new exit (range 5) 917 | -10/Mines | Discovered new exit (range 11) 1035 | -10/Mines | Build established: Scavenger-Mutant 1403 | -10/Mines | Entered Materials 1403 | -9/Materials | Evolved 2 slots: Utility x2 1423 | -9/Materials | Identified exit to Mines 1596 | -9/Materials | Central database locked down 1615 | -9/Materials | Lost 3 parts (1p1u1w) 1658 | -9/Materials | Discovered new exit (range 10) 1717 | -9/Materials | Entered Mines 1726 | -9/Mines | Met a Derelict bent on vengeance 1783 | -9/Mines | Found a hidden stash of uninstalled traps 1845 | -9/Mines | Build established: Mutant 1879 | -9/Mines | Discovered new exit (range 10) 1900 | -9/Mines | A weapon hastily lodged in a ceiling crevice suddenly fell to the ground 1923 | -9/Mines | Learned location of Zion (-7) 1936 | -9/Mines | Assisted by bots powering up and referring to "LRC-V3" 2015 | -9/Mines | Discovered new exit (range 15) 2048 | -9/Mines | Deemed a non-threat by the Exiles lab entrance 2048 | -9/Mines | Discovered new exit (range 5) 2057 | -9/Mines | Entered Exiles 2057 | -9/Exiles | Accompanied by 3 allies 2077 | -9/Exiles | Met 8R-AWN 2089 | -9/Exiles | Met EX-HEX 2111 | -9/Exiles | Met EX-BIN 2121 | -9/Exiles | Aligned with FarCom system 2122 | -9/Exiles | Given EX-Vault access code 2152 | -9/Exiles | Opened EX-Vault 2160 | -9/Exiles | Found YOLO Cannon 2177 | -9/Exiles | Warned to stay clear of 0b10 Research branches 2186 | -9/Exiles | Exiles lab attacked by MAIN.C 2282 | -9/Exiles | Discovered new exit (range 14) 2288 | -9/Exiles | Build established: Scavenger-Mutant 2296 | -9/Exiles | Left Exiles lab with YOLO Cannon 2296 | -9/Exiles | Entered Mines 2296 | -8/Mines | Accompanied by 3 allies 2407 | -8/Mines | Discovered new exit (range 15) 2430 | -8/Mines | Entered Materials 2430 | -8/Materials | Accompanied by 3 allies 2430 | -8/Materials | Evolved 2 slots: Propulsion x1, Utility x1 2681 | -8/Materials | Core integrity fell below 50% 2696 | -8/Materials | Lost 4 parts (1p1u2w) 2777 | -8/Materials | Lost 4 parts (2n2u) 2850 | -8/Materials | Core integrity fell below 20% 2880 | -8/Materials | Repaired Cmb. Airjet 2978 | -8/Materials | Discovered new exit (range 5) 3091 | -8/Materials | Build established: Hacker-Mutant 3230 | -8/Materials | First assault squad dispatched 3310 | -8/Materials | Lost 4 parts (1p1n1u1w) 3346 | -8/Materials | Entered Factory 3346 | -7/Factory | Evolved 2 slots: Propulsion x2 3361 | -7/Factory | Identified exit to Storage 3361 | -7/Factory | Identified exit to Lower Caves 3554 | -7/Factory | Identified exit to Garrison 3595 | -7/Factory | Build established: Hacker-Sprinter 3662 | -7/Factory | Found Prototype Launcher 3662 | -7/Factory | Identified Rocket Array 3665 | -7/Factory | Found Rocket Array 3694 | -7/Factory | Fabricated Hvy. Deuterium Engine? 3746 | -7/Factory | First assault squad dispatched 3859 | -7/Factory | Fabricated Xenon Bombardment Thruster (x2) 3967 | -7/Factory | Garrison activated, responded to threat 3978 | -7/Factory | Entered Garrison 3984 | -7/Garrison | Found embedded Infiltrators 4096 | -7/Garrison | Garrison Relay disabled 4131 | -7/Garrison | Triggered checkpoint 4142 | -7/Garrison | Triggered checkpoint 4172 | -7/Garrison | Build established: Sprinter 4187 | -7/Garrison | Triggered checkpoint 4235 | -7/Garrison | Garrison Relay disabled 4242 | -7/Garrison | Discovered new exit (range 14) 4300 | -7/Garrison | Triggered checkpoint 4423 | -7/Garrison | Discovered new exit (range 10) 4430 | -7/Garrison | Triggered checkpoint 4496 | -7/Garrison | Triggered checkpoint 4516 | -7/Garrison | Garrison Relay disabled 4570 | -7/Garrison | Discovered new exit (range 11) 4680 | -7/Garrison | Phase Generator disabled 4740 | -7/Garrison | Triggered checkpoint 4861 | -7/Garrison | Garrison Relay disabled 5031 | -7/Garrison | Discovered new exit (range 3) 5058 | -7/Garrison | Triggered checkpoint 5068 | -7/Garrison | Garrison Relay disabled 5145 | -7/Garrison | Lost 5 allies 5275 | -7/Garrison | Discovered new exit (range 54) 5275 | -7/Garrison | Discovered new exit (range 37) 5275 | -7/Garrison | Discovered new exit (range 61) 5275 | -7/Garrison | Discovered new exit (range 64) 5366 | -7/Garrison | Entered Factory 5366 | -7/Factory | Accompanied by 1 ally 5622 | -7/Factory | Identified exit to Factory 5767 | -7/Factory | Central database locked down 5841 | -7/Factory | Fabricated Nuclear Pulse Thruster? 5852 | -7/Factory | Fabricated P-60 Hacker? 5867 | -7/Factory | Fabricated P-60 Hacker? 6015 | -7/Factory | Fabricated P-60 Hacker (x2) 6059 | -7/Factory | Cargo convoy interrupted 6063 | -7/Factory | Hacker 4f assimilated hostile X-67 Chaingunner 6107 | -7/Factory | Lost 6 allies 6298 | -7/Factory | Fabricated P-60 Hacker? 6383 | -7/Factory | Core integrity fell below 50% 6426 | -7/Factory | Lost 3 parts (3n) 6566 | -7/Factory | First assault squad dispatched 6596 | -7/Factory | Identified exit to Garrison 6599 | -7/Factory | Entered Garrison 6602 | -7/Garrison | Triggered checkpoint 6676 | -7/Garrison | Garrison Relay disabled 7237 | -7/Garrison | Destroyed 8 combat bots 7240 | -7/Garrison | Triggered checkpoint 7240 | -7/Garrison | Triggered checkpoint 7398 | -7/Garrison | Discovered new exit (range 20) 7404 | -7/Garrison | Learned Factory security intel 7511 | -7/Garrison | Garrison Relay disabled 7546 | -7/Garrison | Discovered new exit (range 19) 7546 | -7/Garrison | Discovered new exit (range 51) 7546 | -7/Garrison | Discovered new exit (range 19) 7747 | -7/Garrison | Garrison Relay disabled 7754 | -7/Garrison | Rescued a captive Derelict 7758 | -7/Garrison | Rescued a captive Derelict 7840 | -7/Garrison | Garrison Relay disabled 7856 | -7/Garrison | Triggered checkpoint 7896 | -7/Garrison | Phase Generator disabled 7938 | -7/Garrison | Garrison Relay disabled 7941 | -7/Garrison | Garrison Relay disabled 8014 | -7/Garrison | Entered Factory 8014 | -7/Factory | Accompanied by 1 ally 8124 | -7/Factory | Garrison activated, responded to threat 8140 | -7/Factory | Discovered exit to Factory (range 8) 8184 | -7/Factory | Discovered exit to Lower Caves (range 22) 8333 | -7/Factory | Core integrity fell below 20% 8343 | -7/Factory | Fabricated P-60 Hacker? 8373 | -7/Factory | Fabricated P-60 Hacker? 8414 | -7/Factory | First assault squad dispatched 8428 | -7/Factory | Fabricated P-60 Hacker (x2) 8448 | -7/Factory | Fabricated P-60 Hacker? 8497 | -7/Factory | Fabricated P-60 Hacker? 8537 | -7/Factory | Hacker 4m assimilated hostile G-47 Trooper 8630 | -7/Factory | Hacker 4o assimilated hostile B-48 Gladiator 8661 | -7/Factory | Hacker 4q assimilated hostile G-47 Trooper 8662 | -7/Factory | Hacker 4q assimilated hostile G-47 Trooper 8728 | -7/Factory | High security lockdown imminent 8776 | -7/Factory | Destroyed 7 combat bots 8808 | -7/Factory | High security lockdown engaged 8841 | -7/Factory | Entered Lower Caves 8841 | -7/Lower Caves | Accompanied by 10 allies 8847 | -7/Lower Caves | Met a Warlord Commander 8848 | -7/Lower Caves | Learned location of Warlord (-4) 8849 | -7/Lower Caves | Warlord Commander delivered Encrypted Comm Array 8852 | -7/Lower Caves | Found Encrypted Comm Array 8970 | -7/Lower Caves | Attracted the attention of an 0b10 checkpoint 9028 | -7/Lower Caves | Learned Factory interactive machine intel 9043 | -7/Lower Caves | Encountered a Warlord checkpoint 9075 | -7/Lower Caves | Discovered new exit (range 19) 9111 | -7/Lower Caves | Entered another Lower Caves area 9111 | -7/Lower Caves | Accompanied by 8 allies 9145 | -7/Lower Caves | Build established: Commander-Sprinter 9229 | -7/Lower Caves | Hacker 4r assimilated hostile S-27 Virus 9251 | -7/Lower Caves | Discovered new exit (range 12) 9319 | -7/Lower Caves | Entered Zion 9319 | -7/Zion | Accompanied by 8 allies 9333 | -7/Zion | System corruption cleaned by Quarantine Array 9357 | -7/Zion | Discovered new exit (range 18) 9402 | -7/Zion | Learned location of Quarantine (-2) 9460 | -7/Zion | Found Prototype Device 9460 | -7/Zion | Identified Mobile Refinery Mk. CCLXVII 9510 | -7/Zion | Given the Hacking Drone Bay 9510 | -7/Zion | Found Prototype Device 9510 | -7/Zion | Identified Hacking Drone Bay 9522 | -7/Zion | Learned location of Data Miner (-6) 9552 | -7/Zion | Found CR-A16's Pointy Stick 9580 | -7/Zion | Rebuked by Imprinter 9607 | -7/Zion | Received a hallucinogenic algorithm 9619 | -7/Zion | Gained Derelict followers 9842 | -7/Zion | Entered Proximity Caves 9842 | -6/Proximity Caves | Accompanied by 12 allies 9985 | -6/Proximity Caves | Attracted the attention of an 0b10 checkpoint 10086 | -6/Proximity Caves | Discovered exit to Factory (range 3) 10125 | -6/Proximity Caves | Entered Factory 10125 | -6/Factory | Accompanied by 9 allies 10125 | -6/Factory | Evolved 2 slots: Power x1, Propulsion x1 10126 | -6/Factory | Loaded intel: 51 interactive machine locations 10313 | -6/Factory | Fabricated G-47 Trooper? 10313 | -6/Factory | Identified exit to Factory 10340 | -6/Factory | Fabricated Adv. Weapon Cycler? 10367 | -6/Factory | Fabricated Cld. VTOL Module? 10477 | -6/Factory | Fabricated Y-54 Guardian? 10480 | -6/Factory | Fabricated Y-54 Guardian? 10483 | -6/Factory | Fabricated Cld. VTOL Module (x1) 10572 | -6/Factory | Identified exit to Lower Caves 10611 | -6/Factory | Identified exit to Garrison 10648 | -6/Factory | Entered Garrison 10648 | -6/Garrison | Accompanied by 10 allies 10651 | -6/Garrison | Triggered checkpoint 10675 | -6/Garrison | Triggered checkpoint 10698 | -6/Garrison | Garrison Relay disabled 10716 | -6/Garrison | Triggered checkpoint 10794 | -6/Garrison | Lost 3 allies 10880 | -6/Garrison | Triggered checkpoint 10930 | -6/Garrison | Discovered exit to Factory (range 36) 10930 | -6/Garrison | Discovered exit to Factory (range 46) 10930 | -6/Garrison | Discovered exit to Factory (range 15) 11002 | -6/Garrison | Build established: Hacker-Sprinter 11022 | -6/Garrison | Found Fusion Bomb Launcher 11237 | -6/Garrison | Garrison Relay disabled 11434 | -6/Garrison | Garrison Relay disabled 11441 | -6/Garrison | Rescued a captive Derelict 11441 | -6/Garrison | Rescued a captive Derelict 11508 | -6/Garrison | Entered Factory 11508 | -5/Factory | Accompanied by 5 allies 11508 | -5/Factory | Evolved 2 slots: Utility x2 11559 | -5/Factory | Identified exit to Garrison 11602 | -5/Factory | Lost 3 parts (2n1u) 11608 | -5/Factory | Spotted B-75 Beast 11677 | -5/Factory | Lost 4 allies 11695 | -5/Factory | High security lockdown imminent 11731 | -5/Factory | Discovered new exit (range 18) 11772 | -5/Factory | Core integrity fell below 50% 11775 | -5/Factory | High security lockdown engaged 11780 | -5/Factory | Core integrity fell below 20% 11801 | -5/Factory | Joined by Warlord Dakka squad 11808 | -5/Factory | Lost 10 parts (1p4n5u) 11830 | -5/Factory | Destroyed by Y-64 Sentinel with Wave Gun Last Messages --------------- 11795_ P-70 Sage destroyed. 11796_ The unstable cave ceiling collapses. 11798_ Nuclear Reactor explodes. A squad of Warlord forces bursts forth from a hidden compartment. 11801_ E7-703(s) destroyed. 11802_ Nuclear Reactor explodes. 11802_ FC-3OC(s): "Stellar job compromising those garrisons! I hear that if enough forces are freed up, it also greatly increases the amount of firepower we can bring to bear during some planned major attacks on the upper levels of 0b10." 11802_ Nuclear Reactor explodes. 11802_ G-50 Soldier destroyed. 11804_ Slug penetrates Wall. 11804_ Slug penetrates L4-VW1(s). 11808_ The unstable cave ceiling collapses. 11813_ Acquired Hvy. Pick. 11817_ The unstable cave ceiling collapses. 11827_ Acquired Mobile Refinery Mk. CCLXVII. 11827_ Penetrated by Slug. 11829_ Acquired CR-A16's Pointy Stick. Map ----- +----------------------------------------------------+ | ???????????????????????? "?" "?" "?" """ #???? | | ???????????????????????? "?" """ """ """ +???? | | ??????????????????????? #???? | | ???????????????????????? ##### | | ???????????????????????? | | ???????????????????????# | | ???????????????????????# | | ???????????????????????# | | ??????????????????????## | | ??????????????????????+ | | ??????????????????????# ? | | ??????????????????????# #?? | | ??????????????????????# #?? | | ??????????????????????# #?? | | ###??????????????????g/ #?? | | #???????????????????# =% #?? | | #???????????????????# Y##### # #??? | | #???????????????????# ^ ## #### = # #??? | | #???????????????????+ # ! % # #??? | | #???????????????????# # [ #g #??? | | #???????????????????# # %* # #??? | | #???????????????????# # [ g+ #??? | | #???##????########??# # # #??? | | #???# ? #??# !# " #??? | | #???# """"""""" #??# ! # ! #Y #??? | | #???# #??# @# # #??? | | ###?#] """"""""" #?## ############### #??? | | T#?# #?# #????????????# #??? | | ""#?# """"""""" #?# #????????????# #??? | | ###?#= #?# < #????#########C #??? | | #???# """"""""" ### ###??# !#Y #??? | | #???# # # ##?# #Y #??? | | #???# """"""""" ## ## ###[ # #??? | | #???# # # """ # #??? | | #???# # ## " """ # #??? | | #########+#" # # # g"""YY+ #??? | | =% # # # # # # g # #??? | | ! # ### # # ^^ #??? | | %=%= # "F "" # #??? | | # #! ### ### """"" # #??? | | ##?# """"" # #??? | | #######+### # = """ ##?######### #??? | | !! % = "" #??????????+ #??? | | != [ "" #??????????# #??? | | # "" #??????????# #??? | | """"""""" #??????????# #??? | | !*% "" #??????????# #??? | | """"""""" %= "" #??????????# #??? | | * "" #??????????# #??? | | ######+### " #??????????# #??? | +----------------------------------------------------+ Best States ------------- Heat Dissipation 59 Energy Generation 31 Energy Capacity 400 Matter Stores 450 Matter Capacity 600 Sight Range 23 Terrain Scan Range 16 Terrain Scan Density 10 ECM Strength 1 Additional Mass Support 16 Armor Coverage 150 Core Shielding 30 Propulsion Shielding 66 Point Defense Rating 240 Evasion (%) 76 Targeting Accuracy 24 Melee Accuracy 6 Launcher Accuracy 40 Target Analysis 5 Energy Filtering 45 Kinecelleration 40 Offensive Hacking 22 Defensive Hacking 20 Authchip Count 5 Item Schematics ----------------- Cmb. Airjet | -8/Materials | Scanalyzed Energy Filter | -8/Materials | Scanalyzed Xenon Bombardment Thruster | -7/Factory | Scanalyzed Enh. Nuclear Core | -7/Factory | Scanalyzed Hrd. Light Armor Plating | -7/Factory | Scanalyzed Minigun | -7/Factory | Scanalyzed Imp. Shield Generator | -7/Factory | Scanalyzed Rocket Array | -7/Factory | Scanalyzed Cld. VTOL Module | -7/Factory | Hacked Riot Gun | -7/Zion | Free Battle Rifle | -7/Zion | Free Battle Cannon | -7/Zion | Free Ripper | -7/Zion | Free Mak. Hover Unit | -7/Zion | Archive Microactuators | -7/Zion | Archive Enh. Optical Array | -7/Zion | Archive Mass Driver | -7/Zion | Archive Hvy. Laser | -7/Zion | Archive Imp. System Shield | -7/Zion | Archive Arm. Huge Wheel | -7/Zion | Archive Plasma Rifle | -7/Zion | Archive Adv. Assault Cannon | -7/Zion | Archive Arm. Leg | -7/Zion | Archive Transmission Jammer | -7/Zion | Archive Hrd. Heavy Armor Plating | -7/Zion | Archive Focal Shield | -7/Zion | Archive Wave Gun | -7/Zion | Archive Hvy. Mass Driver | -7/Zion | Archive Impulse Thruster Array | -5/Factory | Scanalyzed Robot Schematics ------------------ P-60 Hacker | -7/Factory | Hacked B-48 Gladiator | -7/Zion | Archive Y-54 Guardian | -7/Zion | Archive R-06 Scavenger | -7/Zion | Archive Fabricated ------------ Hvy. Deuterium Engine | x1 | -7/Factory | Preloaded Xenon Bombardment Thruster | x2 | -7/Factory Nuclear Pulse Thruster | x2 | -7/Factory | Preloaded P-60 Hacker | x2 | -7/Factory | Authchip P-60 Hacker | x2 | -7/Factory | Authchip P-60 Hacker | x2 | -7/Factory | Authchip P-60 Hacker | x2 | -7/Factory P-60 Hacker | x2 | -7/Factory | Authchip P-60 Hacker | x2 | -7/Factory | Authchip P-60 Hacker | x2 | -7/Factory | Authchip P-60 Hacker | x2 | -7/Factory | Authchip P-60 Hacker | x2 | -7/Factory | Authchip G-47 Trooper | x3 | -6/Factory | Preloaded Adv. Weapon Cycler | x2 | -6/Factory | Preloaded Cld. VTOL Module | x1 | -6/Factory Y-54 Guardian | x2 | -6/Factory Y-54 Guardian | x2 | -6/Factory Cld. VTOL Module | x1 | -6/Factory Alien Tech Used ----------------- None Achievements -------------- Deadly Force Challenges ------------ None Game ------ Seed BladeFocalShifter Manual? 0 Play Time 04:33:12 Cumulative 239.7 hours Start 2024.04.08 @ 22:00:25 End 2024.04.09 @ 02:37:25 Sessions 1 Manual Loads 0 Difficulty Rogue Special Mode None Game No. 98 Rogue 98 Adventurer 0 Explorer 0 Win Type - Total 1 Types 0/0/1/0/0/0/0/0/0 Lore% 64 Gallery% 70 Achievement% 57 Wizard Run 0 Options --------- Layout 0 ASCII 0 Keyboard 1 Movement Arrows Keybinds 0 Fullscreen 1 Font 12/Proggy Map View 83x54 Zoom Use 0% Tactical HUD 1 Map Filters NONE Filters NONE Steam 0 RUN: 97e8a6f2-2392-46f0-a6a1-bbe0153cfd7e